fUST/lending_fUST_20240325
["ID","MTS","AMOUNT","RATE_DAILY","PERIOD"]
[320329894,1711296001582,685.75009172,0.00026209,2]
[320329895,1711296071069,204.77269619,0.00026209,2]
[320329896,1711296100517,200.0,0.00027913,2]
[320329898,1711296195582,204.77269619,0.00026209,2]
[320329899,1711296231007,166.666666,0.0002734,2]
[320329900,1711296261668,213.574151,0.00027769,2]
[320329901,1711296313298,152.11549897,0.00027713,2]
[320329902,1711296315415,158.090576,0.00027494,2]
[320329903,1711296332631,204.77269619,0.00026209,2]
[320329904,1711296338943,302.52792033,0.00026209,2]
[320329905,1711296433125,-204.77269619,0.00028084,2]
[320329906,1711296433145,-166.666666,0.00028085,2]
[320329907,1711296433165,-300.0,0.00028766,2]
[320329908,1711296433185,-83.49886914,0.00028767,2]
[320329909,1711296436102,-161.92,0.00028767,2]
[320329910,1711296499141,388.82125751,0.0002667,2]
[320329921,1711296548109,-77.19940411,0.00028767,2]
[320329922,1711296548133,-701.68721785,0.00028767,2]
[320329923,1711296548157,-302.37627961,0.00028767,2]
[320329924,1711296548177,-204.77269619,0.00028767,2]
[320329925,1711296548199,-2603.55769932,0.00028768,2]
[320329926,1711296548220,-621.51494179,0.00028768,2]
[320329927,1711296548241,-500.0,0.00028768,2]
[320329928,1711296548263,-500.0,0.00028768,2]
[320329929,1711296548284,-1000.0,0.00028768,120]
[320329930,1711296548305,-19961.69186976,0.00028769,2]
[320329931,1711296551115,-15152.46025229,0.00028769,2]
[320329934,1711296572103,-224.5249267,0.00028767,2]
[320329935,1711296572122,-500.0,0.00028768,2]
[320329936,1711296572141,-1696.17880089,0.00028769,2]
[320329937,1711296572161,-500.0,0.00028769,2]
[320329938,1711296572180,-500.0,0.00028769,2]
[320329939,1711296572199,-500.0,0.00028769,2]
[320329940,1711296572220,-304.74402386,0.00028769,2]
[320329941,1711296572239,-500.0,0.00028769,2]
[320329942,1711296572258,-179.6,0.00028769,2]
[320329943,1711296572277,-500.0,0.00028769,2]
[320329944,1711296572295,-500.0,0.00028769,2]
[320329945,1711296572314,-500.0,0.00028769,2]
[320329946,1711296572334,-500.0,0.00028769,2]
[320329947,1711296572354,-500.0,0.00028769,2]
[320329948,1711296572373,-500.0,0.00028769,2]
[320329949,1711296572392,-500.0,0.00028769,2]
[320329950,1711296572412,-500.0,0.00028769,2]
[320329951,1711296572432,-500.0,0.00028769,2]
[320329952,1711296572453,-500.0,0.00028769,2]
[320329953,1711296572473,-500.0,0.00028769,2]
[320329954,1711296572494,-500.0,0.00028769,2]
[320329955,1711296572514,-500.0,0.00028769,2]
[320329956,1711296572534,-153.9,0.00028769,2]
[320329957,1711296572554,-500.0,0.00028769,2]
[320329958,1711296572574,-500.0,0.00028769,2]
[320329959,1711296572593,-494.87533413,0.00028769,2]
[320329960,1711296572613,-500.0,0.00028769,2]
[320329961,1711296572633,-500.0,0.00028769,2]
[320329962,1711296572653,-500.0,0.00028769,2]
[320329963,1711296572673,-500.0,0.00028769,2]
[320329964,1711296572692,-500.0,0.00028769,2]
[320329965,1711296572711,-500.0,0.00028769,2]
[320329966,1711296572732,-500.0,0.00028769,2]
[320329967,1711296572751,-500.0,0.00028769,2]
[320329968,1711296572770,-500.0,0.00028769,2]
[320329969,1711296572789,-500.0,0.00028769,2]
[320329970,1711296572809,-500.0,0.00028769,2]
[320329971,1711296572829,-500.0,0.00028769,2]
[320329972,1711296572849,-316.6499466,0.00028769,2]
[320329973,1711296572867,-498.89357838,0.00028769,2]
[320329974,1711296572890,-500.0,0.00028769,2]
[320329975,1711296572909,-151.0,0.00028769,2]
[320329976,1711296572928,-500.0,0.00028769,2]
[320329977,1711296572948,-764.79,0.00028769,2]
[320329978,1711296572967,-8855.37,0.00028769,2]
[320329979,1711296572986,-500.0,0.00028769,2]
[320329980,1711296573005,-1000.0,0.00028769,2]
[320329981,1711296573025,-500.0,0.00028769,2]
[320329982,1711296573043,-500.0,0.00028769,2]
[320329983,1711296573062,-500.0,0.00028769,2]
[320329984,1711296573082,-500.0,0.00028769,2]
[320329985,1711296573101,-554.1,0.00028769,2]
[320329986,1711296573121,-500.0,0.00028769,2]
[320329987,1711296573140,-500.0,0.00028769,2]
[320329988,1711296573159,-500.0,0.00028769,2]
[320329989,1711296573178,-500.0,0.00028769,2]
[320329990,1711296573198,-500.0,0.00028769,2]
[320329991,1711296573218,-500.0,0.00028769,2]
[320329992,1711296573238,-500.0,0.00028769,2]
[320329993,1711296573257,-500.0,0.00028769,2]
[320329994,1711296573276,-500.0,0.00028769,2]
[320329995,1711296573295,-500.0,0.00028769,2]
[320329996,1711296573315,-500.0,0.00028769,2]
[320329997,1711296573336,-500.0,0.00028769,2]
[320329998,1711296573356,-500.0,0.00028769,2]
[320329999,1711296573376,-500.0,0.00028769,2]
[320330000,1711296573395,-500.0,0.00028769,2]
[320330001,1711296573415,-276.15,0.00028769,2]
[320330002,1711296573437,-884.52,0.00028769,2]
[320330003,1711296573457,-625.86674515,0.00028769,2]
[320330004,1711296573571,-500.0,0.00028769,2]
[320330005,1711296573594,-500.0,0.00028769,2]
[320330006,1711296573614,-500.0,0.00028769,2]
[320330007,1711296573633,-500.0,0.00028769,2]
[320330008,1711296573651,-500.0,0.00028769,2]
[320330009,1711296573671,-500.0,0.00028769,2]
[320330010,1711296573690,-500.0,0.00028769,2]
[320330011,1711296573708,-500.0,0.00028769,2]
[320330012,1711296573731,-500.0,0.00028769,2]
[320330013,1711296573751,-500.50999885,0.00028769,2]
[320330014,1711296573772,-1141.66,0.00028769,2]
[320330015,1711296573793,-431.92686991,0.00028769,2]
[320330016,1711296573814,-500.0,0.00028769,2]
[320330017,1711296573834,-500.92262686,0.00028769,2]
[320330018,1711296573856,-500.0,0.00028769,2]
[320330019,1711296573878,-500.0,0.00028769,2]
[320330020,1711296573898,-500.0,0.00028769,2]
[320330021,1711296573917,-500.0,0.00028769,2]
[320330022,1711296573938,-500.0,0.00028769,2]
[320330023,1711296573957,-500.0,0.00028769,2]
[320330024,1711296573977,-500.0,0.00028769,2]
[320330025,1711296573996,-500.0,0.00028769,2]
[320330026,1711296574015,-500.0,0.00028769,2]
[320330027,1711296574035,-453.47542043,0.00028769,2]
[320330028,1711296574054,-500.0,0.00028769,2]
[320330029,1711296574073,-500.0,0.00028769,2]
[320330030,1711296574094,-443.86633735,0.00028769,2]
[320330031,1711296574113,-841.55,0.00028769,2]
[320330032,1711296574134,-500.0,0.00028769,2]
[320330033,1711296574155,-500.0,0.00028769,2]
[320330034,1711296574174,-500.0,0.00028769,2]
[320330035,1711296574194,-500.0,0.00028769,2]
[320330036,1711296574216,-3130.56,0.00028769,2]
[320330037,1711296574236,-500.0,0.00028769,2]
[320330038,1711296574256,-500.0,0.00028769,2]
[320330039,1711296574276,-500.0,0.00028769,2]
[320330040,1711296574296,-500.0,0.00028769,2]
[320330041,1711296574317,-1035.13,0.00028769,2]
[320330042,1711296574338,-500.0,0.00028769,2]
[320330043,1711296574359,-32304.06194299,0.0002877,2]
[320330044,1711296574379,-166.666666,0.0002883,2]
[320330045,1711296574398,-500.0,0.00029042,2]
[320330046,1711296574419,-286.51108662,0.00029042,2]
[320330047,1711296574439,-387.38140236,0.00029042,2]
[320330048,1711296574459,-398.28310697,0.00029042,2]
[320330049,1711296574479,-409.4676556,0.00029043,2]
[320330050,1711296574499,-475.3,0.00029043,2]
[320330051,1711296574520,-500.0,0.00029043,2]
[320330052,1711296574539,-500.0,0.00029043,2]
[320330053,1711296574558,-500.0,0.00029043,2]
[320330054,1711296574578,-329.59985858,0.00029043,2]
[320330071,1711296633009,-2540.7530942,0.00026212,2]
[320330072,1711296633066,-1562.87492546,0.00026212,2]
[320330075,1711296633077,-167.66406429,0.00028669,4]
[320330077,1711296633087,-500.0,0.00028768,2]
[320330079,1711296633096,-8486.4,0.00028769,2]
[320330081,1711296633105,-719.19,0.00028769,2]
[320330083,1711296633115,-500.0,0.00028769,2]
[320330085,1711296633124,-169.73366787,0.00028769,2]
[320330087,1711296633133,-500.0,0.00028769,2]
[320330089,1711296633143,-163.07,0.00028769,2]
[320330091,1711296633152,-500.0,0.00028769,2]
[320330093,1711296633161,-225.13757817,0.00028769,2]
[320330095,1711296633170,-500.0,0.00028769,2]
[320330097,1711296633179,-500.0,0.00028769,2]
[320330098,1711296633189,-500.0,0.00028769,2]
[320330100,1711296633198,-500.0,0.00028769,2]
[320330102,1711296633208,-500.0,0.00028769,2]
[320330104,1711296633217,-176.0755824,0.00028943,2]
[320330106,1711296633226,-500.0,0.00029042,2]
[320330108,1711296633235,-500.0,0.00029043,2]
[320330109,1711296633245,-500.0,0.00029043,2]
[320330110,1711296633254,-500.0,0.00029043,2]
[320330111,1711296633263,-500.0,0.00029043,2]
[320330112,1711296633272,-500.0,0.00029043,2]
[320330113,1711296633283,-500.0,0.00029043,2]
[320330114,1711296633292,-500.0,0.00029043,2]
[320330115,1711296633301,-500.0,0.00029043,2]
[320330116,1711296633311,-884.52,0.00029043,2]
[320330117,1711296633321,-500.0,0.00029043,2]
[320330118,1711296633330,-500.0,0.00029043,2]
[320330119,1711296633339,-500.0,0.00029043,2]
[320330120,1711296633348,-500.0,0.00029043,2]
[320330121,1711296633358,-1141.66,0.00029043,2]
[320330122,1711296633367,-218.03,0.00029043,2]
[320330123,1711296633376,-500.0,0.00029043,2]
[320330124,1711296633385,-638.95,0.00029043,2]
[320330125,1711296633395,-500.0,0.00029043,2]
[320330126,1711296633404,-500.0,0.00029043,2]
[320330127,1711296633413,-500.0,0.00029043,2]
[320330128,1711296633422,-500.0,0.00029043,2]
[320330129,1711296633432,-500.0,0.00029043,2]
[320330130,1711296633441,-841.55,0.00029043,2]
[320330131,1711296633450,-500.0,0.00029043,2]
[320330132,1711296633458,-3130.56,0.00029043,2]
[320330133,1711296633468,-500.0,0.00029043,2]
[320330134,1711296633477,-572.4,0.00029043,2]
[320330135,1711296633486,-1035.13,0.00029043,2]
[320330136,1711296633495,-8486.4,0.00029043,2]
[320330137,1711296633507,-719.19,0.00029043,2]
[320330138,1711296633516,-500.0,0.00029043,2]
[320330139,1711296633526,-346.22,0.00029043,2]
[320330140,1711296633536,-500.0,0.00029043,2]
[320330141,1711296633546,-500.0,0.00029043,2]
[320330142,1711296633555,-500.0,0.00029043,2]
[320330143,1711296633564,-500.0,0.00029043,2]
[320330144,1711296633574,-500.0,0.00029043,2]
[320330145,1711296633583,-500.0,0.00029043,2]
[320330146,1711296633592,-170.605729,0.00029071,2]
[320330147,1711296633601,-279.68,0.00029316,2]
[320330148,1711296633609,-500.0,0.00029317,2]
[320330149,1711296633618,-500.0,0.00029317,2]
[320330150,1711296633628,-500.0,0.00029317,2]
[320330151,1711296633637,-500.0,0.00029317,2]
[320330152,1711296633646,-293.73,0.00029317,2]
[320330153,1711296633655,-416.59,0.00029317,2]
[320330154,1711296633664,-884.52,0.00029317,2]
[320330155,1711296633673,-500.0,0.00029317,2]
[320330156,1711296633682,-500.0,0.00029317,2]
[320330157,1711296633692,-500.0,0.00029317,2]
[320330158,1711296633701,-1141.66,0.00029317,2]
[320330159,1711296633710,-500.0,0.00029317,2]
[320330160,1711296633718,-500.0,0.00029317,2]
[320330161,1711296633728,-500.0,0.00029317,2]
[320330162,1711296633737,-500.0,0.00029317,2]
[320330163,1711296633746,-500.0,0.00029317,2]
[320330164,1711296633755,-841.55,0.00029317,2]
[320330165,1711296633765,-500.0,0.00029317,2]
[320330166,1711296633774,-3130.56,0.00029317,2]
[320330167,1711296633784,-500.0,0.00029317,2]
[320330168,1711296633793,-1035.13,0.00029317,2]
[320330169,1711296633806,-8486.4,0.00029317,2]
[320330170,1711296633815,-719.19,0.00029317,2]
[320330171,1711296633824,-500.0,0.00029317,2]
[320330172,1711296633834,-500.0,0.00029317,2]
[320330173,1711296633843,-354.67339034,0.00029317,2]
[320330232,1711296638690,-500.0,0.00028769,2]
[320330234,1711296638699,-500.0,0.00028769,2]
[320330236,1711296638708,-420.16,0.00029043,2]
[320330239,1711296638718,-145.32660966,0.00029317,2]
[320330240,1711296638727,-500.0,0.00029317,2]
[320330242,1711296638736,-500.0,0.00029317,2]
[320330244,1711296638745,-500.0,0.00029317,2]
[320330246,1711296638755,-500.0,0.00029317,2]
[320330248,1711296638764,-166.666666,0.00029576,2]
[320330250,1711296638773,-609.49,0.00029591,2]
[320330252,1711296638786,-171.91326712,0.00029591,2]
[320330254,1711296638796,-500.0,0.00029591,2]
[320330256,1711296638807,-500.0,0.00029591,2]
[320330258,1711296638816,-884.52,0.00029591,2]
[320330260,1711296638825,-500.0,0.00029591,2]
[320330262,1711296638834,-500.0,0.00029591,2]
[320330264,1711296638843,-1141.66,0.00029591,2]
[320330266,1711296638852,-500.0,0.00029591,2]
[320330268,1711296638861,-500.0,0.00029591,2]
[320330270,1711296638870,-295.26,0.00029591,2]
[320330272,1711296638879,-500.0,0.00029591,2]
[320330274,1711296638889,-500.0,0.00029591,2]
[320330276,1711296638898,-444.97887286,0.00029591,2]
[320330352,1711296640875,-1065.72785655,0.00028724,2]
[320330367,1711296643797,-6372.8,0.00028724,2]
[320330485,1711296647262,-2609.62480378,0.00028724,2]
[320330490,1711296647319,-300.78721,0.00028724,2]
[320330492,1711296647331,-12917.49861757,0.00028724,2]
[320330494,1711296647340,-500.0,0.00028769,2]
[320330495,1711296647350,-500.0,0.00028769,2]
[320330497,1711296647358,-500.0,0.00028769,2]
[320330498,1711296647368,-500.0,0.00028769,2]
[320330500,1711296647378,-500.0,0.00029043,2]
[320330501,1711296647388,-500.0,0.00029043,2]
[320330502,1711296647397,-43649.26276915,0.0002959,2]
[320330503,1711296647406,-396.57112714,0.00029591,2]
[320330504,1711296647415,-500.0,0.00029591,2]
[320330506,1711296647424,-3130.56,0.00029591,2]
[320330507,1711296647433,-500.0,0.00029591,2]
[320330509,1711296647443,-1035.13,0.00029591,2]
[320330510,1711296647452,-8486.4,0.00029591,2]
[320330511,1711296647461,-719.19,0.00029591,2]
[320330512,1711296647470,-500.0,0.00029591,2]
[320330516,1711296647572,-500.0,0.00029591,2]
[320330517,1711296647585,-500.0,0.00029591,2]
[320330518,1711296647594,-500.0,0.00029591,2]
[320330519,1711296647604,-384.97847442,0.00029864,2]
[320330520,1711296647613,-166.02060101,0.00029864,2]
[320330521,1711296647622,-24187.91838466,0.00029865,3]
[320330522,1711296647632,-500.0,0.00029865,2]
[320330523,1711296647642,-286.22,0.00029865,2]
[320330524,1711296647652,-884.52,0.00029865,2]
[320330525,1711296647661,-500.0,0.00029865,2]
[320330526,1711296647670,-500.0,0.00029865,2]
[320330527,1711296647679,-1141.66,0.00029865,2]
[320330528,1711296647688,-500.0,0.00029865,2]
[320330529,1711296647697,-500.0,0.00029865,2]
[320330530,1711296647706,-500.0,0.00029865,2]
[320330531,1711296647715,-500.0,0.00029865,2]
[320330532,1711296647724,-841.55,0.00029865,2]
[320330533,1711296647733,-500.0,0.00029865,2]
[320330534,1711296647742,-3130.56,0.00029865,2]
[320330535,1711296647751,-500.0,0.00029865,2]
[320330536,1711296647760,-1035.13,0.00029865,2]
[320330537,1711296647770,-8486.4,0.00029865,2]
[320330538,1711296647779,-719.19,0.00029865,2]
[320330539,1711296647788,-500.0,0.00029865,2]
[320330540,1711296647797,-500.0,0.00029865,2]
[320330541,1711296647806,-226.44758175,0.00029865,2]
[320330542,1711296647815,-498.98,0.00029865,2]
[320330543,1711296647826,-213.0,0.0003,2]
[320330544,1711296647837,-500.0,0.00030139,2]
[320330545,1711296647847,-884.52,0.00030139,2]
[320330546,1711296647855,-470.37,0.00030139,2]
[320330547,1711296647865,-158.48,0.00030139,2]
[320330548,1711296647874,-1141.66,0.00030139,2]
[320330549,1711296647884,-500.0,0.00030139,2]
[320330550,1711296647894,-500.0,0.00030139,2]
[320330551,1711296647906,-500.0,0.00030139,2]
[320330552,1711296647919,-500.0,0.00030139,2]
[320330553,1711296647929,-841.55,0.00030139,2]
[320330554,1711296647939,-500.0,0.00030139,2]
[320330555,1711296647948,-3130.56,0.00030139,2]
[320330556,1711296647959,-500.0,0.00030139,2]
[320330557,1711296647968,-1035.13,0.00030139,2]
[320330558,1711296647977,-8486.4,0.00030139,2]
[320330559,1711296647986,-719.19,0.00030139,2]
[320330560,1711296647997,-555.84,0.00030139,2]
[320330561,1711296648007,-500.0,0.00030139,2]
[320330562,1711296648018,-166.666666,0.00030321,2]
[320330563,1711296648027,-152.7,0.00030413,2]
[320330564,1711296648036,-884.52,0.00030413,2]
[320330565,1711296648046,-1141.66,0.00030413,2]
[320330566,1711296648055,-500.0,0.00030413,2]
[320330567,1711296648065,-500.0,0.00030413,2]
[320330568,1711296648074,-500.0,0.00030413,2]
[320330569,1711296648083,-500.0,0.00030413,2]
[320330570,1711296648092,-841.55,0.00030413,2]
[320330571,1711296648102,-500.0,0.00030413,2]
[320330572,1711296648111,-3130.56,0.00030413,2]
[320330573,1711296648121,-500.0,0.00030413,2]
[320330574,1711296648131,-1035.13,0.00030413,2]
[320330575,1711296648141,-8486.4,0.00030413,2]
[320330576,1711296648150,-719.19,0.00030413,2]
[320330577,1711296648159,-181.6,0.00030413,2]
[320330578,1711296648168,-176.07558239,0.0003045,2]
[320330579,1711296648178,-884.52,0.00030687,2]
[320330580,1711296648187,-1141.66,0.00030687,2]
[320330581,1711296648196,-500.0,0.00030687,2]
[320330582,1711296648206,-500.0,0.00030687,2]
[320330583,1711296648216,-500.0,0.00030687,2]
[320330584,1711296648225,-500.0,0.00030687,2]
[320330585,1711296648235,-841.55,0.00030687,2]
[320330586,1711296648245,-500.0,0.00030687,2]
[320330587,1711296648254,-3130.56,0.00030687,2]
[320330588,1711296648263,-628.29,0.00030687,2]
[320330589,1711296648273,-1035.13,0.00030687,2]
[320330590,1711296648282,-8486.4,0.00030687,2]
[320330591,1711296648292,-719.19,0.00030687,2]
[320330592,1711296648301,-884.52,0.00030961,2]
[320330593,1711296648310,-1141.66,0.00030961,2]
[320330594,1711296648319,-500.0,0.00030961,2]
[320330595,1711296648329,-500.0,0.00030961,2]
[320330596,1711296648338,-324.75,0.00030961,2]
[320330597,1711296648347,-500.0,0.00030961,2]
[320330598,1711296648356,-841.55,0.00030961,2]
[320330599,1711296648365,-429.39108265,0.00030961,2]
[320330600,1711296648374,-3130.56,0.00030961,2]
[320330601,1711296648383,-1035.13,0.00030961,2]
[320330602,1711296648392,-8486.4,0.00030961,2]
[320330603,1711296648401,-719.19,0.00030961,2]
[320330604,1711296648410,-166.666666,0.00031067,2]
[320330605,1711296648419,-884.52,0.00031235,2]
[320330606,1711296648428,-1141.66,0.00031235,2]
[320330607,1711296648437,-500.0,0.00031235,2]
[320330608,1711296648446,-500.0,0.00031235,2]
[320330609,1711296648455,-500.0,0.00031235,2]
[320330610,1711296648464,-841.55,0.00031235,2]
[320330611,1711296648473,-3130.56,0.00031235,2]
[320330612,1711296648483,-1035.13,0.00031235,2]
[320330613,1711296648492,-8486.4,0.00031235,2]
[320330614,1711296648501,-719.19,0.00031235,2]
[320330615,1711296648510,-884.52,0.00031509,2]
[320330616,1711296648519,-1141.66,0.00031509,2]
[320330617,1711296648528,-500.0,0.00031509,2]
[320330618,1711296648538,-327.13,0.00031509,2]
[320330619,1711296648547,-322.74466472,0.00031509,2]
[320330620,1711296648555,-841.55,0.00031509,2]
[320330621,1711296648565,-782.77982764,0.00031509,2]
[320330623,1711296783882,169.0,0.00023508,2]
[320330691,1711297186422,166.666666,0.00027272,2]
[320330692,1711297208279,1103.70852218,0.00025076,2]
[320330694,1711297225671,563.997496,0.00027741,2]
[320330698,1711297356646,155.02325349,0.00027741,2]
[320330700,1711297375410,10141.53698619,0.00027741,2]
[320330702,1711297449709,350.0,0.00027,2]
[320330703,1711297537916,12774.91280299,0.00027,2]
[320330704,1711297542178,-435.36590059,0.0002774,2]
[320330705,1711297542198,-255.08491471,0.00027741,2]
[320330706,1711297542218,-174.298023,0.0002801,2]
[320330707,1711297542236,-166.666666,0.00028016,2]
[320330708,1711297542256,-259.21417167,0.00028587,2]
[320330709,1711297542275,-166.666666,0.00028759,2]
[320330710,1711297542294,-154.90705577,0.00028767,2]
[320330711,1711297542316,-302.00543278,0.00028768,2]
[320330723,1711297642109,-170.76931669,0.00028669,4]
[320330724,1711297642128,-410.19112987,0.00028767,2]
[320330725,1711297642150,-288.22919248,0.00028768,2]
[320330726,1711297705460,172.80944778,0.00025641,2]
[320330727,1711297754152,-166.666666,0.00027474,2]
[320330728,1711297754173,-281.998748,0.00028086,2]
[320330729,1711297754193,-166.666666,0.00028223,2]
[320330730,1711297754215,-239.53482708,0.00028768,2]
[320330731,1711297754236,-500.0,0.00028768,2]
[320330732,1711297754256,-500.0,0.00028769,2]
[320330733,1711297754276,-500.0,0.00028769,2]
[320330734,1711297754296,-500.0,0.00028769,2]
[320330735,1711297754317,-153.09234122,0.00028769,2]
[320330736,1711297754338,-314.19020324,0.00028769,2]
[320330746,1711297831850,-170.91913886,0.00028768,2]
[320330747,1711297831861,-92.56086114,0.00028769,2]
[320330768,1711297832050,-407.43913886,0.00028769,2]
[320330770,1711297832061,-500.0,0.00028769,2]
[320330773,1711297832073,-293.51275803,0.00028769,2]
[320330775,1711297832082,-500.0,0.00028769,2]
[320330777,1711297832092,-500.0,0.00028769,2]
[320330779,1711297832101,-500.0,0.00028769,2]
[320330781,1711297832111,-176.07558239,0.00028943,2]
[320330783,1711297832120,-166.666666,0.00028972,2]
[320330785,1711297832130,-500.0,0.00029042,2]
[320330787,1711297832139,-500.0,0.00029042,2]
[320330789,1711297832149,-500.0,0.00029042,2]
[320330790,1711297832160,-151.0,0.00029042,2]
[320330791,1711297832170,-500.0,0.00029042,2]
[320330792,1711297832180,-500.0,0.00029042,2]
[320330793,1711297832190,-500.0,0.00029042,2]
[320330794,1711297832201,-395.91513467,0.00029042,2]
[320330795,1711297832211,-643.99,0.00029042,2]
[320330796,1711297832221,-500.0,0.00029042,2]
[320330797,1711297832231,-500.0,0.00029042,2]
[320330798,1711297832242,-500.0,0.00029042,2]
[320330799,1711297832256,-500.0,0.00029042,2]
[320330800,1711297832265,-500.0,0.00029042,2]
[320330801,1711297832275,-500.0,0.00029042,2]
[320330802,1711297832285,-500.0,0.00029042,2]
[320330803,1711297832295,-500.0,0.00029042,2]
[320330804,1711297832305,-500.0,0.00029042,2]
[320330805,1711297832316,-500.0,0.00029042,2]
[320330806,1711297832327,-500.0,0.00029042,2]
[320330807,1711297832336,-500.0,0.00029042,2]
[320330808,1711297832346,-500.0,0.00029042,2]
[320330809,1711297832356,-500.0,0.00029042,2]
[320330810,1711297832365,-500.0,0.00029042,2]
[320330811,1711297832375,-500.0,0.00029042,2]
[320330812,1711297832385,-500.0,0.00029042,2]
[320330813,1711297832395,-500.0,0.00029042,2]
[320330814,1711297832405,-500.0,0.00029042,2]
[320330815,1711297832415,-405.11944443,0.00029042,2]
[320330816,1711297832426,-500.0,0.00029042,2]
[320330817,1711297832435,-500.0,0.00029042,2]
[320330818,1711297832445,-500.0,0.00029042,2]
[320330819,1711297832456,-500.0,0.00029042,2]
[320330821,1711297832465,-500.0,0.00029042,2]
[320330823,1711297832476,-502.01098185,0.00029042,2]
[320330825,1711297832486,-500.0,0.00029042,2]
[320330828,1711297832497,-500.0,0.00029042,2]
[320330830,1711297832507,-500.0,0.00029042,2]
[320330832,1711297832517,-500.0,0.00029042,2]
[320330834,1711297832527,-500.0,0.00029042,2]
[320330836,1711297832537,-500.0,0.00029042,2]
[320330838,1711297832547,-1563.36,0.00029042,2]
[320330840,1711297832557,-500.0,0.00029042,2]
[320330855,1711297832691,-501.11927951,0.00029042,2]
[320330857,1711297832707,-500.0,0.00029042,2]
[320330860,1711297832716,-500.0,0.00029042,2]
[320330862,1711297832728,-500.0,0.00029042,2]
[320330864,1711297832737,-500.0,0.00029042,2]
[320330866,1711297832747,-500.0,0.00029042,2]
[320330868,1711297832757,-500.0,0.00029042,2]
[320330870,1711297832766,-500.0,0.00029042,2]
[320330872,1711297832775,-500.0,0.00029042,2]
[320330874,1711297832785,-490.88470483,0.00029042,2]
[320330876,1711297832794,-3014.24,0.00029042,2]
[320330878,1711297832803,-500.96133092,0.00029042,2]
[320330880,1711297832812,-99.41872266,0.00029042,2]
[320330944,1711297838935,-212.68987006,0.00029042,2]
[320330945,1711297838947,-187.89140728,0.00029042,2]
[320330946,1711297838956,-466.79295979,0.00029042,2]
[320330947,1711297838965,-71.31563293,0.00029042,2]
[320330948,1711297838977,-428.68436707,0.00029042,2]
[320330949,1711297838986,-500.0,0.00029042,2]
[320330950,1711297838995,-242.117394,0.00029042,2]
[320330984,1711297842448,-257.882606,0.00029042,2]
[320330985,1711297842458,-500.0,0.00029042,2]
[320330987,1711297842466,-208.117394,0.00029042,2]
[320330989,1711297842617,-291.882606,0.00029042,2]
[320330990,1711297842627,-500.0,0.00029042,2]
[320330991,1711297842636,-500.0,0.00029042,2]
[320330992,1711297842645,-500.0,0.00029042,2]
[320330994,1711297842654,-500.0,0.00029042,2]
[320330996,1711297842663,-500.0,0.00029042,2]
[320330998,1711297842672,-500.0,0.00029042,2]
[320330999,1711297842682,-500.0,0.00029042,2]
[320331000,1711297842691,-500.0,0.00029042,2]
[320331001,1711297842701,-500.0,0.00029042,2]
[320331002,1711297842711,-500.0,0.00029042,2]
[320331003,1711297842721,-500.0,0.00029042,30]